fUST/lending_fUST_20250724
["ID","MTS","AMOUNT","RATE_DAILY","PERIOD"]
[374411944,1753293039754,-460.0,0.00019178,2]
[374411946,1753293039764,-460.0,0.00019178,2]
[374411948,1753293039774,-460.0,0.00019178,2]
[374411950,1753293039783,-655.7,0.00019178,2]
[374411952,1753293039793,-460.0,0.00019178,2]
[374411954,1753293039802,-460.0,0.00019178,2]
[374411956,1753293039812,-164.21028227,0.00019178,2]
[374411958,1753293039821,-460.0,0.00019178,2]
[374411960,1753293039832,-460.0,0.00019178,2]
[374411963,1753293039845,-460.0,0.00019178,2]
[374411965,1753293039855,-460.0,0.00019178,2]
[374411966,1753293039864,-246.64489417,0.00019178,2]
[374411968,1753293039877,-460.0,0.00019178,2]
[374411970,1753293039887,-1118.55,0.00019178,2]
[374411973,1753293039898,-460.0,0.00019178,2]
[374411975,1753293039908,-151.25419334,0.00019178,2]
[374411976,1753293039918,-161.600706,0.00019178,2]
[374411979,1753293039927,-4136.42214667,0.00019352,2]
[374411980,1753293039937,-500.0,0.00019452,2]
[374411982,1753293039946,-151.0,0.00019452,2]
[374411984,1753293039955,-171.98864679,0.00019452,2]
[374411986,1753293039965,-151.0,0.00019452,2]
[374411988,1753293039974,-500.0,0.00019452,2]
[374411990,1753293039984,-151.0,0.00019452,2]
[374411992,1753293039993,-878.0,0.00019452,2]
[374411994,1753293040004,-151.0,0.00019452,2]
[374411996,1753293040014,-151.0,0.00019452,2]
[374411999,1753293040024,-966.93,0.00019452,2]
[374412001,1753293040034,-460.0,0.00019452,2]
[374412002,1753293040043,-460.0,0.00019452,2]
[374412004,1753293040052,-412.74,0.00019452,2]
[374412006,1753293040062,-151.0,0.00019452,2]
[374412008,1753293040071,-500.0,0.00019452,2]
[374412011,1753293040081,-151.0,0.00019452,2]
[374412012,1753293040090,-151.0,0.00019452,2]
[374412015,1753293040100,-500.0,0.00019452,2]
[374412017,1753293040109,-151.0,0.00019452,2]
[374412019,1753293040118,-151.0,0.00019452,2]
[374412021,1753293040129,-460.0,0.00019452,2]
[374412023,1753293040139,-151.0,0.00019452,2]
[374412025,1753293040148,-151.0,0.00019452,2]
[374412027,1753293040158,-151.92937431,0.00019452,2]
[374412029,1753293040167,-151.0,0.00019452,2]
[374412031,1753293040177,-199.67216678,0.00019452,2]
[374412033,1753293040186,-151.0,0.00019452,2]
[374412035,1753293040196,-151.0,0.00019452,2]
[374412037,1753293040206,-460.0,0.00019452,2]
[374412039,1753293040216,-151.0,0.00019452,2]
[374412041,1753293040225,-2805.72,0.00019452,2]
[374412043,1753293040234,-460.0,0.00019452,2]
[374412045,1753293040243,-1091.94,0.00019452,2]
[374412047,1753293040253,-460.0,0.00019452,2]
[374412049,1753293040262,-460.0,0.00019452,2]
[374412051,1753293040271,-460.0,0.00019452,2]
[374412053,1753293040280,-460.0,0.00019452,2]
[374412055,1753293040290,-906.98,0.00019452,2]
[374412057,1753293040300,-460.0,0.00019452,2]
[374412059,1753293040309,-460.0,0.00019452,2]
[374412061,1753293040319,-763.47,0.00019452,2]
[374412063,1753293040328,-361.14432634,0.00019452,2]
[374412065,1753293040337,-460.0,0.00019452,2]
[374412067,1753293040346,-489.39923997,0.00019452,2]
[374412069,1753293040356,-460.0,0.00019452,2]
[374412071,1753293040365,-1242.06,0.00019452,2]
[374412073,1753293040376,-705.25,0.00019452,2]
[374412075,1753293040386,-460.0,0.00019452,2]
[374412077,1753293040394,-460.0,0.00019452,2]
[374412079,1753293040403,-460.0,0.00019452,2]
[374412081,1753293040413,-803.1,0.00019452,2]
[374412083,1753293040422,-460.0,0.00019452,2]
[374412085,1753293040432,-460.0,0.00019452,2]
[374412087,1753293040441,-460.0,0.00019452,2]
[374412089,1753293040450,-460.0,0.00019452,2]
[374412091,1753293040460,-2854.66,0.00019452,2]
[374412093,1753293040469,-890.21,0.00019452,2]
[374412095,1753293040478,-781.66,0.00019452,2]
[374412097,1753293040487,-460.0,0.00019452,2]
[374412099,1753293040496,-1392.24,0.00019452,2]
[374412101,1753293040505,-460.0,0.00019452,2]
[374412103,1753293040514,-460.0,0.00019452,2]
[374412105,1753293040524,-460.0,0.00019452,2]
[374412107,1753293040533,-655.7,0.00019452,2]
[374412109,1753293040542,-460.0,0.00019452,2]
[374412111,1753293040551,-460.0,0.00019452,2]
[374412113,1753293040561,-460.0,0.00019452,2]
[374412115,1753293040571,-460.0,0.00019452,2]
[374412117,1753293040580,-460.0,0.00019452,2]
[374412119,1753293040589,-1118.55,0.00019452,2]
[374412121,1753293040599,-460.0,0.00019452,2]
[374412123,1753293040608,-500.0,0.00019687,2]
[374412125,1753293040618,-500.0,0.00019687,2]
[374412128,1753293040631,-500.00932369,0.00019725,2]
[374412131,1753293040641,-503.14242823,0.00019725,2]
[374412133,1753293040650,-500.0,0.00019726,2]
[374412135,1753293040659,-151.0,0.00019726,2]
[374412137,1753293040668,-151.0,0.00019726,2]
[374412139,1753293040678,-319.39890312,0.00019726,2]
[374412141,1753293040689,-198.0,0.00019726,2]
[374412143,1753293040698,-878.0,0.00019726,2]
[374412145,1753293040708,-151.0,0.00019726,2]
[374412147,1753293040717,-198.0,0.00019726,2]
[374412149,1753293040727,-151.0,0.00019726,2]
[374412151,1753293040736,-500.0,0.00019726,2]
[374412153,1753293040746,-295.87155738,0.00019726,2]
[374412155,1753293040755,-255.55352173,0.00019726,2]
[374412157,1753293040765,-500.0,0.00019726,2]
[374412159,1753293040775,-152.52494706,0.00019726,2]
[374412161,1753293040784,-151.0,0.00019726,2]
[374412163,1753293040793,-248.2215431,0.00019726,2]
[374412165,1753293040802,-151.0,0.00019726,2]
[374412166,1753293040812,-198.48400764,0.00019726,2]
[374412168,1753293040822,-966.93,0.00019726,2]
[374412170,1753293040831,-460.0,0.00019726,2]
[374412172,1753293040844,-460.0,0.00019726,2]
[374412174,1753293040854,-460.0,0.00019726,2]
[374412176,1753293040863,-2805.72,0.00019726,2]
[374412178,1753293040875,-1091.94,0.00019726,2]
[374412180,1753293040885,-460.0,0.00019726,2]
[374412182,1753293040894,-460.0,0.00019726,2]
[374412184,1753293040903,-460.0,0.00019726,2]
[374412186,1753293040913,-460.0,0.00019726,2]
[374412188,1753293040923,-906.98,0.00019726,2]
[374412190,1753293040932,-460.0,0.00019726,2]
[374412192,1753293040942,-763.47,0.00019726,2]
[374412194,1753293040951,-460.0,0.00019726,2]
[374412196,1753293040961,-1242.06,0.00019726,2]
[374412198,1753293040970,-705.25,0.00019726,2]
[374412200,1753293040979,-460.0,0.00019726,2]
[374412202,1753293040988,-460.0,0.00019726,2]
[374412204,1753293040997,-460.0,0.00019726,2]
[374412206,1753293041008,-803.1,0.00019726,2]
[374412208,1753293041017,-504.28,0.00019726,2]
[374412210,1753293041027,-460.0,0.00019726,2]
[374412212,1753293041036,-460.0,0.00019726,2]
[374412214,1753293041046,-460.0,0.00019726,2]
[374412216,1753293041055,-2854.66,0.00019726,2]
[374412218,1753293041065,-890.21,0.00019726,2]
[374412220,1753293041074,-781.66,0.00019726,2]
[374412222,1753293041083,-154.70710293,0.00019726,2]
[374412224,1753293041092,-1392.24,0.00019726,2]
[374412226,1753293041102,-460.0,0.00019726,2]
[374412228,1753293041113,-460.0,0.00019726,2]
[374412231,1753293041126,-460.0,0.00019726,2]
[374412233,1753293041136,-460.0,0.00019726,2]
[374412235,1753293041145,-655.7,0.00019726,2]
[374412236,1753293041155,-460.0,0.00019726,2]
[374412238,1753293041165,-460.0,0.00019726,2]
[374412240,1753293041174,-1118.55,0.00019726,2]
[374412242,1753293041184,-460.0,0.00019726,2]
[374412245,1753293041197,-500.0,0.00019829,2]
[374412247,1753293041210,-500.0,0.00019829,2]
[374412250,1753293041223,-500.0,0.00019829,2]
[374412252,1753293041235,-500.0,0.00019829,2]
[374412254,1753293041247,-500.0,0.00019836,2]
[374412256,1753293041259,-451.72084114,0.0001995,2]
[374412258,1753293041269,-460.0,0.00019999,2]
[374412261,1753293041280,-500.0,0.0002,2]
[374412263,1753293041293,-151.0,0.0002,2]
[374412265,1753293041305,-199.33024982,0.0002,2]
[374412267,1753293041316,-878.0,0.0002,2]
[374412270,1753293041327,-297.59033289,0.0002,2]
[374412272,1753293041339,-151.0,0.0002,2]
[374412274,1753293041351,-378.0,0.0002,2]
[374412276,1753293041363,-500.0,0.0002,2]
[374412278,1753293041375,-151.0,0.0002,2]
[374412281,1753293041386,-151.0,0.0002,2]
[374412283,1753293041398,-966.93,0.0002,2]
[374412285,1753293041411,-460.0,0.0002,2]
[374412287,1753293041422,-211.77865579,0.0002,2]
[374412290,1753293041434,-460.0,0.0002,2]
[374412292,1753293041445,-2805.72,0.0002,2]
[374412294,1753293041456,-1091.94,0.0002,2]
[374412296,1753293041467,-578.8400369,0.0002,2]
[374412298,1753293041479,-460.0,0.0002,2]
[374412300,1753293041490,-460.0,0.0002,2]
[374412302,1753293041500,-460.0,0.0002,2]
[374412304,1753293041511,-460.0,0.0002,2]
[374412306,1753293041524,-906.98,0.0002,2]
[374412309,1753293041536,-763.47,0.0002,2]
[374412311,1753293041546,-378.22,0.0002,2]
[374412313,1753293041557,-1242.06,0.0002,2]
[374412315,1753293041568,-705.25,0.0002,2]
[374412317,1753293041579,-460.0,0.0002,2]
[374412319,1753293041590,-460.0,0.0002,2]
[374412321,1753293041599,-460.0,0.0002,2]
[374412323,1753293041610,-803.1,0.0002,2]
[374412325,1753293041620,-460.0,0.0002,2]
[374412328,1753293041634,-460.0,0.0002,2]
[374412330,1753293041644,-460.0,0.0002,2]
[374412332,1753293041655,-2854.66,0.0002,2]
[374412334,1753293041666,-890.21,0.0002,2]
[374412336,1753293041677,-781.66,0.0002,2]
[374412338,1753293041689,-1392.24,0.0002,2]
[374412341,1753293041700,-460.0,0.0002,2]
[374412343,1753293041712,-460.0,0.0002,2]
[374412345,1753293041726,-173.59388735,0.0002,2]
[374412348,1753293041738,-460.0,0.0002,2]
[374412350,1753293041750,-655.7,0.0002,2]
[374412352,1753293041762,-460.0,0.0002,2]
[374412354,1753293041775,-547.56613861,0.0002,2]
[374412356,1753293041787,-1118.55,0.0002,2]
[374412358,1753293041798,-401.4000639,0.0002,2]
[374412360,1753293041808,-3432.7107726,0.00020254,2]
[374412362,1753293041818,-229.44,0.00020263,3]
[374412364,1753293041828,-219.48,0.00020263,3]
[374412366,1753293041840,-658.47,0.00020263,3]
[374412368,1753293041851,-966.93,0.00020273,2]
[374412370,1753293041862,-460.0,0.00020273,2]
[374412373,1753293041876,-460.0,0.00020273,2]
[374412375,1753293041889,-2805.72,0.00020273,2]
[374412377,1753293041900,-1091.94,0.00020273,2]
[374412379,1753293041912,-1091.94,0.00020273,2]
[374412381,1753293041924,-460.0,0.00020273,2]
[374412383,1753293041935,-460.0,0.00020273,2]
[374412385,1753293041946,-460.0,0.00020273,2]
[374412388,1753293041957,-460.0,0.00020273,2]
[374412390,1753293041968,-906.98,0.00020273,2]
[374412392,1753293041978,-763.47,0.00020273,2]
[374412394,1753293041989,-1242.06,0.00020273,2]
[374412396,1753293042001,-460.0,0.00020273,2]
[374412398,1753293042011,-705.25,0.00020273,2]
[374412400,1753293042021,-460.0,0.00020273,2]
[374412402,1753293042031,-460.0,0.00020273,2]
[374412404,1753293042041,-803.1,0.00020273,2]
[374412406,1753293042051,-460.0,0.00020273,2]
[374412408,1753293042062,-460.0,0.00020273,2]
[374412409,1753293042072,-460.0,0.00020273,2]
[374412410,1753293042082,-2854.66,0.00020273,2]
[374412411,1753293042092,-890.21,0.00020273,2]
[374412412,1753293042102,-781.66,0.00020273,2]
[374412413,1753293042112,-1392.24,0.00020273,2]
[374412414,1753293042122,-460.0,0.00020273,2]
[374412415,1753293042135,-460.0,0.00020273,2]
[374412416,1753293042145,-460.0,0.00020273,2]
[374412417,1753293042155,-655.7,0.00020273,2]
[374412418,1753293042166,-460.0,0.00020273,2]
[374412419,1753293042176,-1118.55,0.00020273,2]
[374412420,1753293042187,-500.0,0.00020274,2]
[374412421,1753293042198,-199.82738621,0.00020274,2]
[374412422,1753293042208,-878.0,0.00020274,2]
[374412423,1753293042219,-151.0,0.00020274,2]
[374412424,1753293042230,-500.0,0.00020274,2]
[374412425,1753293042240,-151.0,0.00020274,2]
[374412426,1753293042251,-151.0,0.00020274,2]
[374412427,1753293042261,-3432.7107726,0.00020366,2]
[374412428,1753293042271,-1095.20899026,0.00020377,2]
[374412429,1753293042282,-1000.0,0.00020377,2]
[374412430,1753293042292,-1000.0,0.00020377,2]
[374412431,1753293042303,-1000.0,0.00020377,2]
[374412432,1753293042314,-966.93,0.00020547,2]
[374412433,1753293042324,-460.0,0.00020547,2]
[374412434,1753293042335,-460.0,0.00020547,2]
[374412435,1753293042346,-2805.72,0.00020547,2]
[374412436,1753293042356,-1091.94,0.00020547,2]
[374412438,1753293042367,-1091.94,0.00020547,2]
[374412440,1753293042379,-460.0,0.00020547,2]
[374412442,1753293042390,-460.0,0.00020547,2]
[374412444,1753293042401,-460.0,0.00020547,2]
[374412446,1753293042411,-906.98,0.00020547,2]
[374412448,1753293042423,-763.47,0.00020547,2]
[374412450,1753293042434,-1242.06,0.00020547,2]
[374412452,1753293042444,-460.0,0.00020547,2]
[374412454,1753293042455,-705.25,0.00020547,2]
[374412457,1753293042466,-460.0,0.00020547,2]
[374412459,1753293042476,-460.0,0.00020547,2]
[374412461,1753293042487,-803.1,0.00020547,2]
[374412463,1753293042497,-525.92653414,0.00020547,2]
[374412465,1753293042507,-460.0,0.00020547,2]
[374412467,1753293042519,-460.0,0.00020547,2]
[374412469,1753293042530,-1781.56703815,0.00020547,2]
[374412472,1753293042547,-1073.09296185,0.00020547,2]
[374412474,1753293042558,-453.59651114,0.00020547,2]
[374412483,1753293042637,-277.76240389,0.00019178,2]
[374412485,1753293042647,-145.78755611,0.00020547,2]
[374412487,1753293042660,-290.82593275,0.00020547,2]
[374412489,1753293042671,-781.66,0.00020547,2]
[374412491,1753293042682,-1392.24,0.00020547,2]
[374412494,1753293042694,-460.0,0.00020547,2]
[374412496,1753293042704,-460.0,0.00020547,2]
[374412498,1753293042714,-201.41990778,0.00020547,2]
[374412500,1753293042727,-258.58009222,0.00020547,2]
[374412502,1753293042737,-655.7,0.00020547,2]
[374412504,1753293042748,-460.0,0.00020547,2]
[374412506,1753293042758,-1118.55,0.00020547,2]
[374412508,1753293042768,-500.0,0.00020548,2]
[374412510,1753293042779,-878.0,0.00020548,2]
[374412512,1753293042789,-191.53474751,0.00020548,2]
[374412514,1753293042799,-162.4365031,0.00020548,2]
[374412516,1753293042809,-188.0,0.00020548,2]
[374412518,1753293042820,-3432.7107726,0.00020607,2]
[374412536,1753293042831,-1110.116,0.00020722,2]
[374412540,1753293043003,-178.723,0.00020722,2]
[374412542,1753293043016,-182.08,0.00020772,2]
[374412544,1753293043026,-214.67886746,0.00020775,10]
[374412546,1753293043036,-554.55254211,0.00020775,10]
[374412549,1753293043047,-10829.7873,0.00020775,10]
[374412551,1753293043058,-755.07116551,0.00020775,10]
[374412553,1753293043069,-482.95768626,0.00020775,10]
[374412555,1753293043079,-328.42957638,0.00020804,2]
[374412557,1753293043090,-101.24539162,0.00020804,2]
[374412559,1753293043100,-429.674968,0.00020804,2]
[374412561,1753293043108,-339.55214688,0.00020805,2]
[374412563,1753293043119,-4660.44785312,0.00020805,2]
[374412565,1753293043131,-966.93,0.00020821,2]
[374412567,1753293043140,-460.0,0.00020821,2]
[374412569,1753293043149,-500.68,0.00020821,2]
[374412571,1753293043158,-2805.72,0.00020821,2]
[374412573,1753293043167,-1091.94,0.00020821,2]
[374412575,1753293043176,-306.97491403,0.00020821,2]
[374412577,1753293043186,-460.0,0.00020821,2]
[374412579,1753293043195,-906.98,0.00020821,2]
[374412581,1753293043204,-763.47,0.00020821,2]
[374412582,1753293043213,-502.49735592,0.00020821,2]
[374412584,1753293043222,-1242.06,0.00020821,2]
[374412586,1753293043231,-460.0,0.00020821,2]
[374412588,1753293043241,-705.25,0.00020821,2]
[374412590,1753293043251,-314.00198926,0.00020821,2]
[374412592,1753293043260,-584.56,0.00020821,2]
[374412594,1753293043269,-803.1,0.00020821,2]
[374412596,1753293043278,-460.0,0.00020821,2]
[374412598,1753293043288,-460.0,0.00020821,2]
[374412600,1753293043297,-2854.66,0.00020821,2]
[374412602,1753293043306,-890.21,0.00020821,2]
[374412604,1753293043315,-781.66,0.00020821,2]
[374412606,1753293043325,-1392.24,0.00020821,2]
[374412608,1753293043334,-131.61918921,0.00020821,2]
[374412610,1753293043347,-328.38081079,0.00020821,2]
[374412612,1753293043356,-460.0,0.00020821,2]
[374412614,1753293043365,-460.0,0.00020821,2]
[374412616,1753293043374,-655.7,0.00020821,2]
[374412618,1753293043384,-460.0,0.00020821,2]
[374412620,1753293043393,-1118.55,0.00020821,2]
[374412622,1753293043402,-451.72084114,0.00020821,2]
[374412624,1753293043412,-500.0,0.00020822,2]
[374412626,1753293043421,-878.0,0.00020822,2]
[374412628,1753293043431,-3432.7107726,0.00020827,2]
[374412629,1753293043439,-207.4481837,0.00020849,3]
[374412631,1753293043448,-420.0,0.00020899,2]
[374412633,1753293043457,-1622.75820574,0.00020925,2]
[374412635,1753293043466,-1500.0,0.00020925,2]
[374412637,1753293043475,-8506.46787395,0.0002099,2]
[374412639,1753293043485,-2441.46107849,0.00020995,2]
[374412641,1753293043494,-160.0,0.00021055,2]
[374412643,1753293043504,-966.93,0.00021095,2]
[374412645,1753293043514,-460.0,0.00021095,2]
[374412647,1753293043523,-2805.72,0.00021095,2]
[374412649,1753293043532,-1091.94,0.00021095,2]
[374412651,1753293043541,-460.0,0.00021095,2]
[374412653,1753293043550,-712.20823359,0.00021095,2]
[374412656,1753293043562,-194.77176641,0.00021095,2]
[374412659,1753293043571,-502.04035262,0.00021095,2]
[374412662,1753293043582,-261.42964738,0.00021095,2]
[374412665,1753293043592,-1242.06,0.00021095,2]
[374412668,1753293043602,-460.0,0.00021095,2]
[374412670,1753293043611,-705.25,0.00021095,2]
[374412672,1753293043620,-803.1,0.00021095,2]
[374412674,1753293043630,-252.62810709,0.00021095,2]
[374412676,1753293043639,-460.0,0.00021095,2]
[374412677,1753293043648,-2854.66,0.00021095,2]
[374412679,1753293043657,-890.21,0.00021095,2]
[374412681,1753293043667,-781.66,0.00021095,2]
[374412683,1753293043677,-1392.24,0.00021095,2]
[374412685,1753293043686,-460.0,0.00021095,2]
[374412687,1753293043695,-460.0,0.00021095,2]
[374412689,1753293043704,-460.0,0.00021095,2]
[374412691,1753293043713,-655.7,0.00021095,2]
[374412693,1753293043723,-460.0,0.00021095,2]
[374412695,1753293043732,-1118.55,0.00021095,2]
[374412697,1753293043742,-500.0,0.00021096,2]
[374412699,1753293043751,-878.0,0.00021096,2]
[374412701,1753293043760,-160.0,0.00021121,2]
[374412703,1753293043769,-160.0,0.00021121,2]
[374412705,1753293043778,-160.0,0.00021121,2]
[374412707,1753293043787,-160.0,0.00021121,2]
[374412709,1753293043797,-160.0,0.00021121,2]
[374412711,1753293043806,-476.696448,0.00021121,2]
[374412712,1753293043816,-160.0,0.00021121,2]
[374412714,1753293043825,-526.15909479,0.00021121,2]
[374412716,1753293043841,-840.06856235,0.00021121,2]
[374412718,1753293043861,-160.0,0.00021121,2]
[374412720,1753293043872,-231.11583447,0.00021121,2]
[374412722,1753293043883,-214.67886746,0.00021121,2]
[374412724,1753293043891,-160.0,0.00021121,2]
[374412726,1753293043901,-12622.36869388,0.00021121,2]
[374412728,1753293043910,-160.0,0.00021121,2]
[374412730,1753293043919,-215.84326551,0.00021121,2]
[374412732,1753293043928,-500.0,0.00021164,2]
[374412734,1753293043937,-1648.57435716,0.00021246,2]
[374412948,1753293046108,-460.0,0.00019178,2]
[374412949,1753293046117,-460.0,0.00019452,2]
[374412951,1753293046126,-255.73872307,0.00019726,2]
[374412954,1753293046139,-204.26127693,0.00019726,2]
[374412956,1753293046148,-201.09717883,0.0002,2]
[374412958,1753293046159,-258.90282117,0.0002,2]
[374412960,1753293046169,-917.86290118,0.00021246,2]
[374412962,1753293046180,-585.18609412,0.00021246,2]
[374412964,1753293046192,-281.08742054,0.00021246,2]
[374412966,1753293046201,-151.65150298,0.00021269,2]
[374412968,1753293046213,-848.58699053,0.00021269,2]
[374412970,1753293046222,-153.0,0.0002133,2]
[374412972,1753293046231,-159.9205653,0.0002133,2]
[374412974,1753293046240,-229.60467575,0.0002133,2]
[374412976,1753293046251,-291.41882514,0.0002133,2]
[374412979,1753293046263,-56.51959791,0.0002133,2]
[374412981,1753293046272,-178.2325116,0.0002133,2]
[374412983,1753293046281,-159.9205653,0.0002133,2]
[374412985,1753293046291,-577.5430988,0.0002133,2]
[374412987,1753293046301,-178.2325116,0.0002133,2]
[374412989,1753293046310,-153.0,0.0002133,2]
[374412990,1753293046319,-159.9205653,0.0002133,2]
[374412992,1753293046328,-178.2325116,0.0002133,2]
[374412994,1753293046337,-577.5430988,0.0002133,2]
[374412996,1753293046347,-159.9205653,0.0002133,2]
[374412997,1753293046357,-178.2325116,0.0002133,2]
[374412999,1753293046367,-577.5430988,0.0002133,2]
[374413001,1753293046376,-178.2325116,0.0002133,2]
[374413003,1753293046387,-159.9205653,0.0002133,2]
[374413005,1753293046396,-577.5430988,0.0002133,2]
[374413007,1753293046406,-577.5430988,0.0002133,2]
[374413009,1753293046416,-159.9205653,0.0002133,2]
[374413011,1753293046426,-178.2325116,0.0002133,2]
[374413013,1753293046435,-159.9205653,0.0002133,2]
[374413015,1753293046444,-178.2325116,0.0002133,2]
[374413017,1753293046454,-577.5430988,0.0002133,2]
[374413021,1753293046467,-159.9205653,0.0002133,2]
[374413023,1753293046477,-1083.0084942,0.0002133,2]
[374413025,1753293046487,-178.2325116,0.0002133,2]
[374413026,1753293046496,-577.5430988,0.0002133,2]
[374413028,1753293046505,-159.9205653,0.0002133,2]
[374413030,1753293046515,-178.2325116,0.0002133,2]
[374413032,1753293046524,-178.2325116,0.0002133,2]
[374413034,1753293046534,-159.9205653,0.0002133,2]
[374413036,1753293046543,-577.5430988,0.0002133,2]
[374413038,1753293046552,-178.2325116,0.0002133,2]
[374413040,1753293046563,-577.5430988,0.0002133,2]
[374413042,1753293046572,-159.9205653,0.0002133,2]
[374413044,1753293046582,-159.9205653,0.0002133,2]
[374413046,1753293046591,-577.5430988,0.0002133,2]
[374413048,1753293046600,-178.2325116,0.0002133,2]
[374413050,1753293046610,-966.93,0.00021369,2]
[374413052,1753293046619,-460.0,0.00021369,2]
[374413054,1753293046631,-2805.72,0.00021369,2]
[374413056,1753293046641,-1091.94,0.00021369,2]
[374413058,1753293046650,-906.98,0.00021369,2]
[374413060,1753293046660,-355.42608351,0.00021369,2]
[374413063,1753293046677,-408.04391649,0.00021369,2]
[374413065,1753293046687,-460.0,0.00021369,2]
[374413067,1753293046697,-1242.06,0.00021369,2]
[374413069,1753293046706,-705.25,0.00021369,2]
[374413071,1753293046716,-803.1,0.00021369,2]
[374413073,1753293046725,-460.0,0.00021369,2]
[374413075,1753293046734,-2854.66,0.00021369,2]
[374413076,1753293046745,-890.21,0.00021369,2]
[374413078,1753293046754,-781.66,0.00021369,2]
[374413080,1753293046764,-1392.24,0.00021369,2]
[374413082,1753293046774,-460.0,0.00021369,2]
[374413084,1753293046783,-460.0,0.00021369,2]
[374413086,1753293046792,-460.0,0.00021369,2]
[374413088,1753293046802,-655.7,0.00021369,2]
[374413090,1753293046811,-460.0,0.00021369,2]
[374413092,1753293046821,-500.0,0.0002137,2]
[374413094,1753293046830,-878.0,0.0002137,2]
[374413095,1753293046841,-2000.0,0.00021473,2]
[374413097,1753293046850,-1685.4,0.00021539,5]
[374413100,1753293046860,-260.0,0.00021603,2]
[374413101,1753293046869,-458.88,0.00021633,3]
[374413103,1753293046880,-438.96,0.00021633,3]
[374413105,1753293046893,-966.93,0.00021643,2]
[374413107,1753293046903,-460.0,0.00021643,2]
[374413109,1753293046913,-1962.32117373,0.00021643,2]
[374413112,1753293046925,-515.70928475,0.00021643,2]
[374414075,1753293482547,356.032305,0.00013699,2]
[374414077,1753293938143,-300.0,0.00019177,2]
[374414078,1753293938169,-460.0,0.00019178,2]
[374414079,1753293938192,-460.0,0.00019178,2]
[374414080,1753293938215,-460.0,0.00019178,2]
[374414081,1753293938238,-463.85214761,0.00019178,2]
[374414082,1753293938261,-8.40701036,0.00019178,2]
[374414083,1753294035159,-242.4991287,0.00019178,2]
[374414084,1753294041095,-209.09386094,0.00019178,2]
[374414085,1753294041129,-361.78534963,0.00019178,2]
[374414108,1753294232888,-161.28851365,0.000189,2]
[374414109,1753294232897,-982.89128638,0.00019178,2]
[374414110,1753294232940,-267.15803426,0.00019178,2]
[374414154,1753294238707,-849.73067936,0.00019178,2]
[374414156,1753294238718,-460.0,0.00019178,2]
[374414158,1753294238728,-464.45,0.00019178,2]
[374414160,1753294238737,-680.24,0.00019178,2]
[374414162,1753294238747,-460.0,0.00019178,2]
[374414164,1753294238757,-517.10318241,0.00019178,2]
[374414170,1753294238812,-427.97681759,0.00019178,2]
[374414172,1753294238822,-460.0,0.00019178,2]
[374414174,1753294238831,-173.59388735,0.00019178,2]
[374414176,1753294238841,-547.56613861,0.00019178,2]
[374414178,1753294238853,-460.0,0.00019178,2]
[374414180,1753294238863,-762.24,0.00019178,2]
[374414182,1753294238873,-907.92,0.00019178,2]
[374414185,1753294238883,-460.0,0.00019178,2]
[374414186,1753294238892,-399.74683154,0.00019352,2]
[374414188,1753294238902,-211.77865579,0.0001945,2]